[Event "Championnat du monde jeunes U10"]
[Date "2024.11.26"]
[White "Shangin, Lev"]
[Black "Tulegen, Ramazan"]
[WhiteElo "2056"]
[BlackElo "1818"]
[Round "11.8"]
[Result "1/2-1/2"]
[TimeControl "5400+30"]

1. d4 {[%clk 1:30:42]} 1... Nf6 {[%clk 1:30:53]} 2. c4 {[%clk 1:30:44]} 2... g6
{[%clk 1:31:15]} 3. Nc3 {[%clk 1:30:52]} 3... d5 {[%clk 1:31:38]} 4. cxd5 {[%clk
1:30:33]} 4... Nxd5 {[%clk 1:32:00]} 5. e4 {[%clk 1:30:39]} 5... Nxc3 {[%clk
1:32:21]} 6. bxc3 {[%clk 1:30:59]} 6... Bg7 {[%clk 1:32:48]} 7. Bc4 {[%clk
1:30:12]} 7... c5 {[%clk 1:33:12]} 8. Ne2 {[%clk 1:29:56]} 8... Nc6 {[%clk
1:33:28]} 9. Be3 {[%clk 1:29:25]} 9... O-O {[%clk 1:33:48]} 10. O-O {[%clk
1:29:12]} 10... b6 {[%clk 1:34:12]} 11. Qd2 {[%clk 1:24:16]} 11... Bb7 {[%clk
1:34:35]} 12. Rfd1 {[%clk 1:21:50]} 12... Rc8 {[%clk 1:34:43]} 13. Rac1 {[%clk
1:20:47]} 13... e6 {[%clk 1:34:59]} 14. Bg5 {[%clk 1:13:27]} 14... Qd7 {[%clk
1:34:08]} 15. h4 {[%clk 1:11:48]} 15... cxd4 {[%clk 1:34:27]} 16. cxd4 {[%clk
1:12:15]} 16... Na5 {[%clk 1:34:52]} 17. Bd3 {[%clk 1:12:20]} 17... Rxc1 {[%clk
1:35:10]} 18. Rxc1 {[%clk 1:11:53]} 18... Nc6 {[%clk 1:35:28]} 19. Bb5 {[%clk
1:09:59]} 19... a6 {[%clk 1:35:52]} 20. Bxc6 {[%clk 1:08:19]} 20... Bxc6 {[%clk
1:36:04]} 21. e5 {[%clk 1:05:24]} 21... Rc8 {[%clk 1:30:24]} 22. Ng3 {[%clk
0:56:00]} 22... Bb7 {[%clk 1:16:08]} 23. Rxc8+ {[%clk 0:52:08]} 23... Qxc8
{[%clk 1:13:10]} 24. Bh6 {[%clk 0:46:32]} 24... Bxh6 {[%clk 1:05:16]} 25. Qxh6
{[%clk 0:46:50]} 25... Qd8 {[%clk 1:05:40]} 26. Qf4 {[%clk 0:39:49]} 26... h5
{[%clk 1:00:38]} 27. Kh2 {[%clk 0:33:59]} 27... b5 {[%clk 0:59:57]} 28. Kh3
{[%clk 0:30:53]} 28... a5 {[%clk 0:57:36]} 29. Qd2 {[%clk 0:27:27]} 29... b4
{[%clk 0:56:15]} 30. Ne2 {[%clk 0:25:26]} 30... Qc7 {[%clk 0:46:38]} 31. Nf4
{[%clk 0:18:31]} 31... Be4 {[%clk 0:38:26]} 32. Kh2 {[%clk 0:13:47]} 32... Qc2
{[%clk 0:36:51]} 33. Qe3 {[%clk 0:13:26]} 33... a4 {[%clk 0:35:59]} 34. d5
{[%clk 0:10:04]} 34... Bxd5 {[%clk 0:34:54]} 35. Nxd5 {[%clk 0:10:08]} 35...
exd5 {[%clk 0:35:13]} 36. e6 {[%clk 0:10:19]} 36... Qc7+ {[%clk 0:35:37]} 37. g3
{[%clk 0:09:55]} 37... fxe6 {[%clk 0:35:54]} 38. Qxe6+ {[%clk 0:10:06]} 38...
Qf7 {[%clk 0:36:19]} 39. Qc8+ {[%clk 0:08:58]} 39... Kh7 {[%clk 0:36:00]} 40.
Qc2 {[%clk 0:07:30]} 40... Qa7 {[%clk 0:32:04]} 41. g4 {[%clk 0:04:43]} 41...
Qb8+ {[%clk 0:30:39]} 42. Kh3 {[%clk 0:03:59]} 42... Qf4 {[%clk 0:30:22]} 43.
Qxa4 {[%clk 0:02:58]} 43... Qxg4+ {[%clk 0:30:25]} 44. Kh2 {[%clk 0:03:25]}
44... Qxh4+ {[%clk 0:30:45]} 45. Kg1 {[%clk 0:03:28]} 45... Qg4+ {[%clk
0:30:29]} 46. Kh2 {[%clk 0:03:48]} 46... Qh4+ {[%clk 0:30:03]} 47. Kg2 {[%clk
0:04:03]} 47... Qe7 {[%clk 0:30:18]} 48. Qc6 {[%clk 0:03:19]} 48... Kh6 {[%clk
0:29:51]} 49. Kf1 {[%clk 0:03:00]} 49... Qe5 {[%clk 0:28:13]} 50. Qc5 {[%clk
0:02:20]} 50... Qe4 {[%clk 0:24:40]} 51. Qc1+ {[%clk 0:02:09]} 51... Kg7 {[%clk
0:25:01]} 52. Qc7+ {[%clk 0:02:35]} 52... Kf6 {[%clk 0:25:27]} 53. Qd6+ {[%clk
0:01:42]} 53... Kg5 {[%clk 0:25:06]} 54. Qd8+ {[%clk 0:01:17]} 54... Kg4 {[%clk
0:25:06]} 55. Qd7+ {[%clk 0:01:29]} 55... Qf5 {[%clk 0:25:22]} 56. Qd6 {[%clk
0:01:24]} 56... Qd3+ {[%clk 0:25:10]} 57. Kg2 {[%clk 0:01:42]} 57... Qf3+ {[%clk
0:24:53]} 58. Kg1 {[%clk 0:02:03]} 58... d4 {[%clk 0:16:32]} 59. Qxd4+ {[%clk
0:01:36]} 59... Qf4 {[%clk 0:16:28]} 60. Qd7+ {[%clk 0:01:36]} 60... Kh4 {[%clk
0:16:37]} 61. Qd3 {[%clk 0:01:19]} 61... Kg5 {[%clk 0:15:48]} 62. Qd8+ {[%clk
0:01:33]} 62... Kf5 {[%clk 0:13:22]} 63. Qf8+ {[%clk 0:01:45]} 63... Kg4 {[%clk
0:12:49]} 64. Qc8+ {[%clk 0:02:07]} 64... Kh4 {[%clk 0:13:05]} 65. Qc6 {[%clk
0:01:42]} 65... Kg5 {[%clk 0:09:21]} 66. Qd5+ {[%clk 0:01:14]} 66... Kh6 {[%clk
0:09:41]} 67. Qg8 {[%clk 0:01:20]} 67... Qf6 {[%clk 0:09:08]} 68. Kg2 {[%clk
0:01:20]} 68... h4 {[%clk 0:08:51]} 69. Qc4 {[%clk 0:01:16]} 69... Qe7 {[%clk
0:09:09]} 70. Kh3 {[%clk 0:01:21]} 70... g5 {[%clk 0:09:05]} 71. Qc6+ {[%clk
0:01:37]} 71... Kh5 {[%clk 0:09:02]} 72. Qf3+ {[%clk 0:01:55]} 72... Kg6 {[%clk
0:09:28]} 73. Qc6+ {[%clk 0:02:22]} 73... Kf5 {[%clk 0:09:52]} 74. Qf3+ {[%clk
0:02:26]} 74... Ke5 {[%clk 0:10:07]} 75. Qe3+ {[%clk 0:02:27]} 75... Kd6 {[%clk
0:10:32]} 76. Qb6+ {[%clk 0:02:34]} 76... Kd5 {[%clk 0:10:50]} 77. Qb5+ {[%clk
0:02:44]} 77... Kd4 {[%clk 0:11:08]} 78. Qc6 {[%clk 0:02:30]} 78... Qe5 {[%clk
0:10:49]} 79. Qc2 {[%clk 0:01:51]} 79... Qe6+ {[%clk 0:10:55]} 80. Kh2 {[%clk
0:02:15]} 80... Qe5+ {[%clk 0:08:37]} 81. Kh3 {[%clk 0:02:22]} 81... Qe6+ {[%clk
0:08:11]} 82. Kh2 {[%clk 0:02:35]} 82... g4 {[%clk 0:07:38]} 83. Qd2+ {[%clk
0:02:18]} 83... Kc5 {[%clk 0:06:19]} 84. Qg5+ {[%clk 0:02:15]} 84... Kc6 {[%clk
0:06:20]} 85. Qa5 {[%clk 0:01:33]} 85... Qd6+ {[%clk 0:05:12]} 86. Kg1 {[%clk
0:01:54]} 86... Qd1+ {[%clk 0:05:00]} 87. Kh2 {[%clk 0:02:18]} 87... Qd2 {[%clk
0:03:27]} 88. Kg1 {[%clk 0:01:49]} 88... Qe1+ {[%clk 0:03:31]} 89. Kg2 {[%clk
0:02:11]} 89... h3+ {[%clk 0:03:31]} 90. Kg3 {[%clk 0:02:34]} 90... Qg1+ {[%clk
0:03:22]} 91. Kf4 {[%clk 0:02:27]} 91... Qxf2+ {[%clk 0:02:15]} 92. Kxg4 {[%clk
0:02:53]} 92... h2 {[%clk 0:02:31]} 93. Qa6+ {[%clk 0:02:57]} 93... Kd5 {[%clk
0:02:54]} 94. Qb5+ {[%clk 0:03:05]} 94... Qc5 {[%clk 0:02:14]} 95. Qd7+ {[%clk
0:02:50]} 95... Kc4 {[%clk 0:02:13]} 96. Qf7+ {[%clk 0:02:32]} 96... Kc3 {[%clk
0:01:44]} 97. Qb3+ {[%clk 0:01:58]} 97... Kd2 {[%clk 0:01:21]} 98. Qb2+ {[%clk
0:02:24]} 98... Qc2 {[%clk 0:01:06]} 99. Qxb4+ {[%clk 0:02:13]} 99... Kd3 {[%clk
0:00:44]} 100. Qd6+ {[%clk 0:02:23]} 100... Kc3 {[%clk 0:01:05]} 101. Qc6+
{[%clk 0:02:23]} 101... Kb2 {[%clk 0:01:29]} 102. Qh1 {[%clk 0:02:31]} 102...
Kxa2 {[%clk 0:01:26]} 103. Kh3 {[%clk 0:02:29]} 1/2-1/2

[Variant "Standard"]
[Site "Europe Echecs"]

[Event "Championnat du monde jeunes U10"]
[Date "2024.11.26"]
[White "Filipovs, Sergejs"]
[Black "Zhauynbay, Alimzhan"]
[WhiteElo "2012"]
[BlackElo "1953"]
[Round "11.9"]
[Result "0-1"]
[TimeControl "5400+30"]

1. e4 {[%clk 1:30:58]} 1... c5 {[%clk 1:30:53]} 2. Nf3 {[%clk 1:31:22]} 2... e6
{[%clk 1:31:19]} 3. d4 {[%clk 1:31:47]} 3... cxd4 {[%clk 1:31:46]} 4. Nxd4
{[%clk 1:32:11]} 4... a6 {[%clk 1:32:14]} 5. c4 {[%clk 1:32:33]} 5... Nf6 {[%clk
1:32:36]} 6. Nc3 {[%clk 1:32:58]} 6... Bb4 {[%clk 1:32:53]} 7. Qd3 {[%clk
1:33:22]} 7... O-O {[%clk 1:32:01]} 8. e5 {[%clk 1:25:27]} 8... Ne8 {[%clk
1:32:04]} 9. a3 {[%clk 1:24:31]} 9... Bxc3+ {[%clk 1:30:50]} 10. Qxc3 {[%clk
1:24:56]} 10... d6 {[%clk 1:31:07]} 11. exd6 {[%clk 1:24:31]} 11... Nxd6 {[%clk
1:31:06]} 12. Be3 {[%clk 1:22:12]} 12... e5 {[%clk 1:28:02]} 13. Nf3 {[%clk
1:22:18]} 13... Nf5 {[%clk 1:25:11]} 14. Rd1 {[%clk 1:16:02]} 14... Qe7 {[%clk
1:23:40]} 15. Qxe5 {[%clk 1:12:27]} 15... Qxe5 {[%clk 1:23:42]} 16. Nxe5 {[%clk
1:12:52]} 16... Re8 {[%clk 1:21:57]} 17. Be2 {[%clk 1:11:15]} 17... f6 {[%clk
1:20:55]} 18. Nf3 {[%clk 1:11:34]} 18... Nc6 {[%clk 1:15:49]} 19. Bb6 {[%clk
1:11:06]} 19... a5 {[%clk 1:13:15]} 20. Rd2 {[%clk 1:05:13]} 20... a4 {[%clk
1:02:50]} 21. O-O {[%clk 1:04:47]} 21... Na5 {[%clk 1:01:32]} 22. Re1 {[%clk
0:54:22]} 22... Nb3 {[%clk 0:56:11]} 23. Rdd1 {[%clk 0:54:33]} 23... Be6 {[%clk
0:51:40]} 24. c5 {[%clk 0:54:08]} 24... Bf7 {[%clk 0:47:39]} 25. Bd3 {[%clk
0:48:58]} 25... Nfd4 {[%clk 0:40:32]} 26. Be4 {[%clk 0:47:12]} 26... Nc6 {[%clk
0:33:22]} 27. Rd7 {[%clk 0:45:30]} 27... Rab8 {[%clk 0:26:41]} 28. h3 {[%clk
0:42:29]} 28... Nca5 {[%clk 0:24:58]} 29. Bxh7+ {[%clk 0:32:35]} 29... Kxh7
{[%clk 0:25:14]} 30. Rxf7 {[%clk 0:32:58]} 30... Rxe1+ {[%clk 0:21:11]} 31. Nxe1
{[%clk 0:33:22]} 31... Re8 {[%clk 0:21:00]} 32. Nd3 {[%clk 0:32:45]} 32... Re2
{[%clk 0:19:00]} 33. Nf4 {[%clk 0:26:26]} 33... Rxb2 {[%clk 0:15:12]} 34. Ne6
{[%clk 0:26:48]} 34... Re2 {[%clk 0:13:46]} 35. Nd8 {[%clk 0:26:29]} 35... Kg6
{[%clk 0:12:12]} 36. Rd7 {[%clk 0:26:32]} 36... Nc4 {[%clk 0:11:22]} 37. Nxb7
{[%clk 0:25:19]} 37... Nbd2 {[%clk 0:11:26]} 38. g4 {[%clk 0:24:14]} 38... Ne5
{[%clk 0:11:14]} 39. Rd5 {[%clk 0:23:41]} 39... Ndf3+ {[%clk 0:09:15]} 40. Kg2
{[%clk 0:23:58]} 40... Re1 {[%clk 0:09:36]} 41. Kg3 {[%clk 0:23:23]} 41... Kh6
{[%clk 0:08:29]} 42. Kf4 {[%clk 0:22:46]} 42... Nh4 {[%clk 0:06:39]} 43. f3
{[%clk 0:15:45]} 43... g5+ {[%clk 0:06:57]} 44. Kg3 {[%clk 0:16:10]} 44... Re2
{[%clk 0:07:24]} 0-1

[Variant "Standard"]
[Site "Europe Echecs"]

[Event "Championnat du monde jeunes U10"]
[Date "2024.11.26"]
[White "Zabelin, Platon"]
[Black "Kolodziejczyk, Boris"]
[WhiteElo "1870"]
[BlackElo "2115"]
[Round "11.10"]
[Result "0-1"]
[TimeControl "5400+30"]

1. d4 {[%clk 1:28:53]} 1... Nf6 {[%clk 1:30:48]} 2. c4 {[%clk 1:29:19]} 2... g6
{[%clk 1:31:07]} 3. Nc3 {[%clk 1:29:26]} 3... Bg7 {[%clk 1:31:36]} 4. e4 {[%clk
1:29:55]} 4... O-O {[%clk 1:31:49]} 5. e5 {[%clk 1:29:12]} 5... Ne8 {[%clk
1:32:13]} 6. f4 {[%clk 1:27:55]} 6... d6 {[%clk 1:29:28]} 7. Be3 {[%clk
1:21:44]} 7... c5 {[%clk 1:24:05]} 8. dxc5 {[%clk 1:17:26]} 8... Nc6 {[%clk
1:22:22]} 9. cxd6 {[%clk 1:09:22]} 9... exd6 {[%clk 1:22:40]} 10. Qd2 {[%clk
1:06:48]} 10... Bf5 {[%clk 1:20:00]} 11. Rd1 {[%clk 1:00:04]} 11... Qa5 {[%clk
1:10:34]} 12. exd6 {[%clk 0:52:28]} 12... Nf6 {[%clk 1:08:47]} 13. h3 {[%clk
0:46:46]} 13... Rfe8 {[%clk 1:06:20]} 14. Kf2 {[%clk 0:36:38]} 14... Nb4 {[%clk
1:04:00]} 15. Nf3 {[%clk 0:33:43]} 15... Nxa2 {[%clk 1:00:43]} 16. Bd3 {[%clk
0:28:33]} 16... Nxc3 {[%clk 1:00:18]} 17. bxc3 {[%clk 0:27:56]} 17... Bxd3
{[%clk 1:00:03]} 18. Qxd3 {[%clk 0:26:24]} 18... Ne4+ {[%clk 0:58:49]} 19. Kg1
{[%clk 0:26:21]} 19... Nxd6 {[%clk 0:56:16]} 20. Bd4 {[%clk 0:24:50]} 20... Nf5
{[%clk 0:54:53]} 21. Kh2 {[%clk 0:23:18]} 21... Rad8 {[%clk 0:54:13]} 22. g4
{[%clk 0:08:32]} 22... Ne7 {[%clk 0:52:12]} 23. Kg2 {[%clk 0:06:44]} 23... Nc6
{[%clk 0:50:47]} 24. Qc2 {[%clk 0:05:31]} 24... Qc7 {[%clk 0:50:24]} 25. f5
{[%clk 0:04:56]} 25... Ne5 {[%clk 0:49:34]} 26. Nxe5 {[%clk 0:04:26]} 26... Bxe5
{[%clk 0:49:47]} 27. Rhe1 {[%clk 0:04:00]} 27... Bxd4 {[%clk 0:48:00]} 28. Rxe8+
{[%clk 0:04:12]} 28... Rxe8 {[%clk 0:48:24]} 29. cxd4 {[%clk 0:04:15]} 29... Re3
{[%clk 0:48:07]} 30. Qf2 {[%clk 0:04:35]} 30... Qe7 {[%clk 0:48:24]} 31. Qf4
{[%clk 0:03:51]} 31... Re2+ {[%clk 0:45:50]} 32. Kf1 {[%clk 0:03:27]} 32... Re4
{[%clk 0:45:45]} 33. Qf3 {[%clk 0:01:21]} 33... g5 {[%clk 0:44:44]} 34. f6
{[%clk 0:00:49]} 34... Qe6 {[%clk 0:44:01]} 35. Kg1 {[%clk 0:00:32]} 35... Rf4
{[%clk 0:43:10]} 36. Qd3 {[%clk 0:00:45]} 36... Qxf6 {[%clk 0:43:18]} 37. d5
{[%clk 0:01:07]} 37... Rf3 {[%clk 0:43:12]} 38. Qe4 {[%clk 0:00:50]} 38... Qb6+
{[%clk 0:37:02]} 39. Qd4 {[%clk 0:00:46]} 39... Qd6 {[%clk 0:32:16]} 40. Rd2
{[%clk 0:00:32]} 40... Qg3+ {[%clk 0:30:24]} 41. Rg2 {[%clk 0:01:01]} 41... Qe1+
{[%clk 0:30:45]} 42. Kh2 {[%clk 0:01:25]} 42... Rxh3+ {[%clk 0:31:08]} 43. Kxh3
{[%clk 0:01:50]} 43... Qh4# {[%clk 0:31:33]} 0-1

[Variant "Standard"]
[Site "Europe Echecs"]

[Event "Championnat du monde jeunes U10"]
[Date "2024.11.26"]
[White "Kadyr, Aldiyar"]
[Black "Ilko-Toth, Andras"]
[WhiteElo "1759"]
[BlackElo "2115"]
[Round "11.11"]
[Result "0-1"]
[TimeControl "5400+30"]

1. e4 {[%clk 1:30:50]} 1... c6 {[%clk 1:30:54]} 2. d4 {[%clk 1:31:10]} 2... d5
{[%clk 1:31:20]} 3. exd5 {[%clk 1:31:36]} 3... cxd5 {[%clk 1:31:43]} 4. Bd3
{[%clk 1:32:03]} 4... Nc6 {[%clk 1:32:06]} 5. c3 {[%clk 1:32:28]} 5... Nf6
{[%clk 1:31:04]} 6. h3 {[%clk 1:32:48]} 6... e5 {[%clk 1:31:26]} 7. dxe5 {[%clk
1:33:02]} 7... Nxe5 {[%clk 1:31:50]} 8. Qe2 {[%clk 1:33:03]} 8... Ne4 {[%clk
1:31:42]} 9. Bxe4 {[%clk 1:26:39]} 9... dxe4 {[%clk 1:31:59]} 10. Qxe4 {[%clk
1:26:34]} 10... Bd6 {[%clk 1:32:22]} 11. Ne2 {[%clk 1:22:49]} 11... O-O {[%clk
1:29:59]} 12. O-O {[%clk 1:17:52]} 12... Nd3 {[%clk 1:23:20]} 13. Qd4 {[%clk
1:12:08]} 13... Bc5 {[%clk 1:17:15]} 14. Qxd8 {[%clk 1:12:13]} 14... Rxd8 {[%clk
1:17:43]} 15. b4 {[%clk 1:11:44]} 15... Bb6 {[%clk 1:16:50]} 16. Be3 {[%clk
1:09:30]} 16... Bxe3 {[%clk 1:16:42]} 17. fxe3 Re8 18. Nd4 {[%clk 1:05:56]}
18... Rxe3 {[%clk 1:06:04]} 19. Nd2 {[%clk 1:04:32]} 19... Be6 {[%clk 0:57:56]}
20. Nxe6 {[%clk 0:57:42]} 20... Rxe6 {[%clk 0:51:19]} 21. Rf3 {[%clk 0:57:01]}
21... Rd8 {[%clk 0:46:51]} 22. Nb3 {[%clk 0:55:36]} 22... Ne5 {[%clk 0:39:35]}
23. Re3 {[%clk 0:55:29]} 23... f6 {[%clk 0:39:31]} 24. a4 {[%clk 0:53:38]} 24...
Rc6 {[%clk 0:38:43]} 25. Rc1 {[%clk 0:41:07]} 25... Rd5 {[%clk 0:32:36]} 26. Re4
{[%clk 0:38:23]} 26... b6 {[%clk 0:31:20]} 27. Rd4 {[%clk 0:37:15]} 27... Rxd4
{[%clk 0:30:11]} 28. Nxd4 {[%clk 0:37:41]} 28... Rc4 {[%clk 0:30:23]} 29. Nb5
{[%clk 0:29:48]} 29... a6 {[%clk 0:23:42]} 30. Na3 {[%clk 0:28:07]} 30... Re4
{[%clk 0:22:37]} 31. Kf1 {[%clk 0:21:44]} 31... Nd3 {[%clk 0:20:21]} 32. Rd1
{[%clk 0:19:05]} 32... Nb2 {[%clk 0:19:55]} 33. Rd8+ {[%clk 0:19:30]} 33... Kf7
{[%clk 0:20:19]} 34. Ra8 {[%clk 0:19:55]} 34... Nxa4 {[%clk 0:19:59]} 35. Rxa6
{[%clk 0:20:15]} 35... Nxc3 {[%clk 0:20:23]} 36. Rxb6 {[%clk 0:20:40]} 36... Nd5
{[%clk 0:20:11]} 37. Rb7+ {[%clk 0:19:47]} 37... Kg6 {[%clk 0:20:31]} 38. b5
{[%clk 0:19:30]} 38... Rb4 {[%clk 0:20:07]} 39. Nc2 {[%clk 0:11:43]} 39... Rb1+
{[%clk 0:20:30]} 40. Ne1 {[%clk 0:11:55]} 40... Nc3 {[%clk 0:20:32]} 41. b6
{[%clk 0:09:47]} 41... Nd5 {[%clk 0:20:56]} 42. Rd7 {[%clk 0:10:11]} 42... Nxb6
{[%clk 0:21:15]} 43. Rb7 {[%clk 0:10:38]} 43... Nc4 {[%clk 0:21:21]} 44. Rxb1
{[%clk 0:10:55]} 44... Nd2+ {[%clk 0:21:45]} 45. Kf2 {[%clk 0:10:59]} 45... Nxb1
{[%clk 0:22:07]} 46. Nd3 {[%clk 0:11:15]} 46... Nc3 {[%clk 0:22:13]} 47. Nf4+
{[%clk 0:11:29]} 47... Kf5 {[%clk 0:21:54]} 48. Kf3 {[%clk 0:11:51]} 48... Nb5
{[%clk 0:21:20]} 49. g4+ {[%clk 0:11:34]} 49... Ke5 {[%clk 0:21:22]} 50. Nd3+
{[%clk 0:11:50]} 50... Ke6 {[%clk 0:21:43]} 51. Nf4+ {[%clk 0:11:39]} 51... Kf7
{[%clk 0:22:01]} 52. h4 {[%clk 0:11:20]} 52... Nc7 {[%clk 0:21:54]} 53. Ke4
{[%clk 0:10:17]} 53... Ne6 {[%clk 0:21:53]} 54. Nd3 {[%clk 0:08:30]} 54... Nf8
{[%clk 0:21:36]} 55. Nc5 {[%clk 0:06:40]} 55... Ne6 {[%clk 0:20:55]} 56. Nd3
{[%clk 0:06:53]} 56... Nd8 {[%clk 0:19:29]} 57. Kf4 {[%clk 0:05:21]} 57... g6
{[%clk 0:19:15]} 58. h5 {[%clk 0:03:48]} 58... Ne6+ {[%clk 0:19:27]} 59. Kg3
{[%clk 0:03:34]} 59... Ng7 {[%clk 0:19:05]} 60. hxg6+ {[%clk 0:02:38]} 60...
hxg6 {[%clk 0:19:33]} 61. g5 {[%clk 0:02:20]} 61... Nh5+ {[%clk 0:19:29]} 62.
Kh4 {[%clk 0:02:20]} 62... f5 {[%clk 0:19:29]} 63. Ne5+ {[%clk 0:02:41]} 63...
Kg7 {[%clk 0:19:47]} 64. Nd3 {[%clk 0:03:04]} 64... Kh7 {[%clk 0:19:51]} 65. Kh3
{[%clk 0:02:40]} 65... Ng7 {[%clk 0:20:05]} 66. Nf4 {[%clk 0:02:35]} 66... Nh5
{[%clk 0:20:14]} 67. Nd3 {[%clk 0:02:05]} 67... Ng7 {[%clk 0:20:32]} 68. Nf4
{[%clk 0:02:21]} 68... Ne8 {[%clk 0:20:55]} 69. Nd5 {[%clk 0:02:12]} 69... Kg7
{[%clk 0:21:14]} 70. Kg3 {[%clk 0:02:00]} 70... Kf7 {[%clk 0:21:28]} 71. Kf4
{[%clk 0:01:21]} 71... Ke6 {[%clk 0:21:26]} 72. Nb4 {[%clk 0:01:38]} 72... Nc7
{[%clk 0:21:47]} 73. Nd3 {[%clk 0:00:53]} 73... Kd6 {[%clk 0:22:06]} 74. Kg3
{[%clk 0:00:48]} 74... Ne6 {[%clk 0:22:30]} 75. Kg2 {[%clk 0:00:42]} 75... Kd5
{[%clk 0:22:23]} 76. Kg3 {[%clk 0:00:32]} 76... Kd4 {[%clk 0:19:43]} 77. Nf2
{[%clk 0:00:31]} 77... Nxg5 {[%clk 0:19:40]} 78. Kf4 {[%clk 0:00:50]} 78... Ne6+
{[%clk 0:20:01]} 79. Kf3 {[%clk 0:01:19]} 79... Ke5 {[%clk 0:20:18]} 80. Ke3
{[%clk 0:01:25]} 80... g5 {[%clk 0:20:33]} 81. Nd3+ {[%clk 0:01:46]} 81... Kf6
{[%clk 0:20:47]} 82. Kf3 {[%clk 0:02:06]} 82... Nf8 {[%clk 0:20:45]} 83. Kg3
{[%clk 0:02:17]} 83... Ng6 {[%clk 0:21:02]} 84. Nc5 {[%clk 0:01:57]} 84... Ne5
{[%clk 0:21:19]} 85. Nb3 {[%clk 0:02:01]} 85... g4 {[%clk 0:21:28]} 86. Nd4
{[%clk 0:01:12]} 86... Ng6 {[%clk 0:21:46]} 87. Nc6 {[%clk 0:01:33]} 87... Kg5
{[%clk 0:22:05]} 88. Nd4 {[%clk 0:01:39]} 88... f4+ {[%clk 0:22:12]} 89. Kf2
{[%clk 0:02:01]} 89... Kf6 {[%clk 0:21:14]} 90. Nb3 {[%clk 0:01:48]} 90... Kf5
{[%clk 0:20:01]} 91. Nd2 {[%clk 0:01:23]} 91... g3+ {[%clk 0:19:59]} 92. Kf1
{[%clk 0:00:54]} 92... Kg4 {[%clk 0:19:54]} 93. Kg1 {[%clk 0:01:11]} 93... Ne5
{[%clk 0:20:11]} 94. Ne4 {[%clk 0:00:31]} 94... f3 {[%clk 0:19:37]} 95. Kf1
{[%clk 0:00:43]} 95... Nd3 {[%clk 0:18:52]} 96. Kg1 {[%clk 0:00:38]} 96... Nf4
{[%clk 0:18:59]} 97. Kf1 {[%clk 0:00:43]} 97... Ne2 {[%clk 0:18:57]} 98. Ke1
{[%clk 0:00:32]} 98... g2 {[%clk 0:18:49]} 99. Nf2+ {[%clk 0:00:59]} 99... Kf5
{[%clk 0:18:35]} 100. Nh3 {[%clk 0:01:19]} 100... g1=Q+ {[%clk 0:18:53]} 101.
Nxg1 {[%clk 0:01:48]} 101... Nxg1 {[%clk 0:19:11]} 102. Kf2 {[%clk 0:02:17]}
102... Ke4 {[%clk 0:19:35]} 103. Kf1 {[%clk 0:02:11]} 103... Ke3 {[%clk
0:19:56]} 104. Ke1 {[%clk 0:02:18]} 104... f2+ {[%clk 0:20:03]} 105. Kf1 {[%clk
0:02:44]} 105... Nf3 {[%clk 0:20:27]} 106. Kg2 {[%clk 0:03:09]} 106... Nd2
{[%clk 0:20:49]} 107. Kg3 {[%clk 0:03:35]} 107... f1=Q {[%clk 0:21:09]} 108. Kg4
{[%clk 0:04:03]} 108... Qg2+ {[%clk 0:21:27]} 109. Kf5 {[%clk 0:04:30]} 109...
Qe4+ {[%clk 0:21:48]} 110. Kf6 {[%clk 0:04:57]} 110... Qd5 {[%clk 0:22:12]} 111.
Ke7 {[%clk 0:05:24]} 111... Qc6 {[%clk 0:22:36]} 112. Kd8 {[%clk 0:05:52]}
112... Qb7 {[%clk 0:22:58]} 113. Ke8 {[%clk 0:06:19]} 113... Kd4 {[%clk
0:23:08]} 114. Kf8 {[%clk 0:06:42]} 114... Qd7 {[%clk 0:23:33]} 115. Kg8 {[%clk
0:07:09]} 115... Qe7 {[%clk 0:23:56]} 116. Kh8 {[%clk 0:07:37]} 116... Nf3
{[%clk 0:24:14]} 117. Kg8 {[%clk 0:08:03]} 117... Ng5 {[%clk 0:24:37]} 118. Kh8
{[%clk 0:08:28]} 118... Qf8# {[%clk 0:25:02]} 0-1

[Variant "Standard"]
[Site "Europe Echecs"]